{"text_format":"2","workbook":"xlsx","n_sheets":2,"sheets":["Обособена позиция 1","Обособена позиция 2"],"not_rendered":{"charts":0,"images":0,"macros":0,"external_links":0,"defined_names":0,"comments":1,"pivot_tables":0},"unopened":[],"bounds":{"document_bytes":16777216,"sheet_cells":100000,"run_cost":"one","rows_first":2000,"rows_last":500,"rows_between":2000,"halvings":0,"cell_chars":16384,"cell_head_chars":4096},"cells_cut":0,"cells_raw":0,"read":"whole","date_system":"1900"}

{"sheet":"Обособена позиция 1","index":0,"n_rows":401,"n_cols":15,"rows_kept":401,"cut":false,"hidden":false,"merged":[[192,1,193,1],[30,6,31,6],[43,6,44,6],[312,6,313,6],[321,6,322,6],[1,1,2,8],[394,1,394,7],[395,1,395,7],[396,1,396,7],[4,5,5,5],[4,7,5,7],[345,5,346,5],[345,7,346,7],[325,8,326,8],[325,2,326,3],[325,7,326,7],[325,6,326,6],[338,6,339,6],[345,6,346,6],[338,4,339,4],[338,5,339,5],[338,7,339,7],[295,8,296,8],[295,2,296,3],[397,1,397,7],[321,8,322,8],[321,2,322,3],[321,4,322,4],[312,8,313,8],[312,2,313,3],[312,4,313,4],[321,5,322,5],[321,7,322,7],[312,5,313,5],[312,7,313,7],[325,4,326,4],[325,5,326,5],[338,2,339,3],[388,8,389,8],[388,2,389,3],[388,4,389,4],[388,5,389,5],[388,7,389,7],[388,6,389,6],[345,8,346,8],[345,2,346,3],[345,4,346,4],[338,8,339,8],[295,4,296,4],[295,5,296,5],[295,7,296,7],[284,8,285,8],[284,2,285,3],[284,4,285,4],[300,5,301,5],[300,7,301,7],[300,8,301,8],[295,6,296,6],[300,6,301,6],[300,2,301,3],[300,4,301,4],[274,8,275,8],[284,5,285,5],[284,7,285,7],[261,8,262,8],[261,2,262,3],[261,4,262,4],[261,5,262,5],[261,7,262,7],[274,2,275,3],[274,4,275,4],[274,5,275,5],[274,7,275,7],[261,6,262,6],[274,6,275,6],[284,6,285,6],[243,8,244,8],[243,2,244,3],[243,4,244,4],[243,5,244,5],[243,7,244,7],[230,8,231,8],[230,2,231,3],[230,4,231,4],[230,5,231,5],[230,7,231,7],[230,6,231,6],[243,6,244,6],[219,8,220,8],[219,2,220,3],[219,4,220,4],[219,5,220,5],[219,7,220,7],[211,8,212,8],[211,2,212,3],[211,4,212,4],[211,5,212,5],[211,7,212,7],[211,6,212,6],[219,6,220,6],[203,8,204,8],[203,4,204,4],[203,5,204,5],[203,7,204,7],[191,2,193,3],[191,4,193,4],[191,5,193,5],[191,7,193,7],[191,8,193,8],[191,6,193,6],[203,6,204,6],[203,2,204,3],[183,8,185,8],[183,2,185,3],[183,4,185,4],[183,5,185,5],[183,7,185,7],[172,8,173,8],[172,2,173,3],[172,4,173,4],[172,5,173,5],[172,7,173,7],[172,6,173,6],[183,6,185,6],[114,8,115,8],[114,2,115,3],[114,4,115,4],[114,5,115,5],[114,7,115,7],[105,8,106,8],[105,2,106,3],[105,4,106,4],[105,5,106,5],[105,7,106,7],[105,6,106,6],[114,6,115,6],[98,8,99,8],[98,2,99,3],[98,4,99,4],[98,5,99,5],[98,7,99,7],[59,8,60,8],[51,8,52,8],[51,2,52,3],[51,4,52,4],[51,5,52,5],[51,7,52,7],[59,2,60,3],[59,4,60,4],[59,5,60,5],[59,7,60,7],[51,6,52,6],[59,6,60,6],[98,6,99,6],[4,8,5,8],[43,8,44,8],[30,8,31,8],[30,1,31,1],[30,2,31,3],[30,7,31,7],[6,8,7,8],[6,5,7,5],[6,1,7,1],[6,2,7,3],[6,4,7,4],[6,7,7,7],[30,4,31,4],[30,5,31,5],[43,1,44,1],[43,2,44,3],[43,4,44,4],[43,5,44,5],[43,7,44,7],[4,1,5,1],[4,2,5,3],[4,4,5,4],[4,6,5,6],[6,6,7,6]]}
[{"$nulls":6},"Приложение №1"]
[null,"Обособена позиция №1Ценово предложение за доставка на медикаменти за нуждите на \"МБАЛ Левски\"ЕООД гр.Левски"]
[]
[]
[null,"Генерично наименование","Лекарствена форма",null,"Търговско наименование","Производител"," Брой за 2 години","Цена без ДДС за единица мярка","Обща цена без ДДС"]
[]
[null,"група-1 Медикаменти за храносмилателната система и метаболизъм","Мярка",null,"Търговско наименование"," Производител","Брой за 2годинr","Цена без ДДС за единица мярка ","Обща цена без ДДС"]
[]
[null,"Silymarin","Caps.90 mg",null,null,null,1800,null,{"$f":"G9*H9","v":0}]
[null," Ranitidin"," Tabl 300 mg",null,null,null,180,null,{"$f":"G10*H10","v":0}]
[null,"Omeprazole","fl. 0,04 g",null,null,null,120,null,0]
[null," Famotidine"," tabl",null,null,null,40,null,0]
[null,"Famotidine","amp. 20mg + solv. 5ml",null,null,null,20,null,0]
[null,"Drotaverine","amp. 20mg/ml 2ml",null,null,null,2000,null,0]
[null,"Drotaverine","tabl. 40mg",null,null,null,800,null,0]
[null,"Metoclopramide","tabl. 10mg",null,null,null,240,null,0]
[null,"Metoclopramide","amp. 10mg/2ml",null,null,null,2000,null,0]
[null,"Diosmectite","pulv. 3.76g",null,null,null,400,null,0]
[null,"Vomitusheel","Supp.",null,null,null,288,null,0]
[null,"Simethicone","Sol 30 ml",null,null,null,40,null,0]
[null,"Loperamide","caps. 2mg",null,null,null,96,null,0]
[null," Bisakodyl","Sup.5 mg",null,null,null,100,null,0]
[null,"Atropine","amp. 1mg/1ml",null,null,null,400,null,0]
[null,"Butylscopolamine","amp. 20mg/ 1ml",null,null,null,400,null,0]
[null,"Butylscopolamine","dr. 10mg",null,null,null,400,null,0]
[null,"Fenpiverini bromidum + Pitofenoni hydrochloridum + Metamizolum sodium","amp. 2ml",null,null,null,400,null,0]
[null,"Fenpiverini bromidum + Pitofenoni hydrochloridum + Metamizolum sodim","tabl. ",null,null,null,3000,null,0]
[null,"Papaverini hydrochloridum","amp. 20mg/1ml",null,null,null,1000,null,{"$f":"G28*H28","v":0}]
[null,"Papaverini hydrochloridum","tabl. 50mg",null,null,null,400,null,{"$f":"G29*H29","v":0}]
[{"$nulls":8},{"$f":"SUM(I9:I29)","v":0}]
[null,"група-2 Медикаменти влияещи върху кръвнозахарното ниво","Мярка",null,"Търговско наименование"," Производител","Брой за 2 годинr","Цена без ДДС за единица мярка ","Обща цена без ДДС"]
[]
[]
[null,"Инсулин с интермедиерно деиствие","amp. 40IU/ml 10ml ",null,null,null,40,null,{"$f":"G34*H34","v":0}]
[null,"Инсулин с кратко деиствие и бърз ефект","amp. 40IU/ml 10ml ",null,null,null,40,null,{"$f":"G35*H35","v":0}]
[null,"Metformin hydrochloride","Tb 850 mg",null,null,null,1400,null,0]
[null,"Metformin hydrochloride","Tb.1000 mg",null,null,null,800,null,0]
[null,"Metformin hydrochloride","Tb.500 mg",null,null,null,200,null,0]
[null,"Acarbose","Tb.100 mg",null,null,null,200,null,0]
[null,"Gliclazide","Tb. 60 mg",null,null,null,200,null,0]
[null,"Glimepiride","Tb.2mg",null,null,null,200,null,0]
[null,"Glimepiride","Tb.4mg",null,null,null,100,null,0]
[{"$nulls":8},{"$f":"SUM(I34:I42)","v":0}]
[null,"група-3 Витамини ","Мярка",null,"Търговско наименование"," Производител","Брой за 2 години","Цена без ДДС за единица мярка ","Обща цена без ДДС"]
[]
[null,"Rutascorbin","Tb.100 mg",null,null,null,200,null,{"$f":"G46*H46","v":0}]
[null,"Accorbic acid","amp. 100mg/ml 5ml",null,null,null,1000,null,{"$f":"G47*H47","v":0}]
[null,"Benfotiamin+Pyridoxine + Cyancobalamin","Caps. soft",null,null,null,600,null,0]
[null,"Thiamine + Pyridoxine + Cyancobalamin + Lidocaine hydrochloride","amp. 2ml",null,null,null,1000,null,0]
[{"$nulls":8},{"$f":"SUM(I46:I49)","v":0}]
[]
[null,"група-4 Медикаменти за кръвта и за кръвообразуващите органи","Мярка",null,"Търговско наименование"," Производител","Брой за 2 години","Цена без ДДС за единица мярка ","Обща цена без ДДС"]
[]
[null,"Acenocoumarol","tabl. 4mg",null,null,null,120,null,{"$f":"G54*H54","v":0}]
[null,"Nadroparin","spr. amp. 2850UI 0.3ml",null,null,null,400,null,{"$f":"G55*H55","v":0}]
[null,"Nadroparin","spr. amp. 5700UI 0.6ml",null,null,null,80,null,0]
[null,"Heparin     ","fl.25000 UI",null,null,null,10,null,0]
[{"$nulls":8},{"$f":"SUM(I54:I57)","v":0}]
[]
[null,"група-5 Антибиотици","Мярка",null,"Търговско наименование"," Производител","Брой за 2 години","Цена без ДДС за единица мярка ","Обща цена без ДДС"]
[]
[null,"Azithromycin","fl. 500mg ",null,null,null,20,null,{"$f":"G62*H62","v":0}]
[null,"Amoxicillin","tabl. 1,0",null,null,null,160,null,{"$f":"G63*H63","v":0}]
[null,"Cefadroxil","250mg/5ml 60ml sir",null,null,null,20,null,0]
[null,"Midecamycin","tabl. 400 md.",null,null,null,100,null,0]
[null,"Midecamycin","175mg/5ml 115ml ",null,null,null,10,null,0]
[null,"Doxycyclin","caps.100 mg.",null,null,null,100,null,0]
[null,"Ciprofloxacin","tabl.500 mg х 10",null,null,null,1200,null,0]
[null,"Ciprofloxacin","amp.10mg/ml/10ml",null,null,null,40,null,0]
[null,"Klarithromycin","500 mg",null,null,null,200,null,0]
[null,"Klarithromycin","syr. 125mg/5ml 60ml",null,null,null,10,null,0]
[null,"Clindamycin","amp. 150mg/ml 4ml",null,null,null,20,null,0]
[null,"Amikacin ","amp. 500mg/2ml",null,null,null,1400,null,0]
[null,"Amikacin ","amp. 250mg/2ml",null,null,null,1400,null,0]
[null,"Gentamicin","amp. 80mg/2ml",null,null,null,400,null,0]
[null,"Gentamicin ","amp. 40mg/1ml",null,null,null,200,null,0]
[null,"Cefuroxime","tb500mg x 10",null,null,null,40,null,0]
[null,"Cefuroxime","syr.125/5ml 50ml",null,null,null,10,null,0]
[null,"Ceftriaxone","fl. 1,0 gr",null,null,null,10000,null,0]
[null,"Ceftriaxone","fl. 2,0 gr",null,null,null,200,null,0]
[null,"Cefoperazone","fl 1,0 gr",null,null,null,1000,null,0]
[null,"Cefazolin ","fl. 1,0 gr",null,null,null,800,null,0]
[null,"Cefotaxime","fl.1,0g",null,null,null,800,null,0]
[null,"Ampicillin sodium+Sulbactam sodium","fl.1.5 gr",null,null,null,20,null,0]
[null,"Amoxicillin + Acidum clavulanicum","fl. 1.2g",null,null,null,1000,null,0]
[null,"Amoxicillin + Acidum clavulanicum","Tabl. 375 mg.",null,null,null,400,null,0]
[null,"Amoxicillin + Acidum clavulanicum","Sir.312mg/5ml.fl.100ml.",null,null,null,10,null,0]
[null,"Amoxicillin + Acidum clavulanicum","Sir.156mg/5ml.   fl.100ml",null,null,null,10,null,0]
[null,"Amoxicillin","Sir.250mg/5ml 60ml",null,null,null,60,null,0]
[null,"Cefaclor","Sir 125mg/5 ml",null,null,null,10,null,0]
[null,"Cefalexin","Caps.500 mg",null,null,null,120,null,0]
[null,"Fluconazole","Caps.150 mg",null,null,null,520,null,0]
[null,"Tinidazole","Tb.500 mg",null,null,null,100,null,0]
[null,"Fungostatin","100000IU/ml",null,null,null,20,null,0]
[null,"Nystatin","500000 IU tb",null,null,null,800,null,0]
[null,"Sulfamethoxazole/Trimethoprim","tabl. 480 mg.",null,null,null,100,null,0]
[null,"Sulfamethoxazole/Trimethoprim","200mg/40mg/5ml susp.",null,null,null,20,null,0]
[{"$nulls":8},{"$f":"SUM(I62:I97)","v":0}]
[null,"група-7 Кръвоспиращи за системно приложение","Мярка",null,"Търговско наименование"," Производител","Брой за 2години","Цена без ДДС за единица мярка ","Обща цена без ДДС"]
[]
[null,"Etamsylatе","amp. 250mg/2ml",null,null,null,200,null,{"$f":"G101*H101","v":0}]
[null,"Phytomenadione","amp. 10mg/1ml",null,null,null,200,null,{"$f":"G102*H102","v":0}]
[null,"Terlipresin","amp.0,1mg/ml  2ml",null,null,null,20,null,0]
[null,"Pambenzacid","amp. 10mg/ml 5ml",null,null,null,20,null,0]
[{"$nulls":8},{"$f":"SUM(I101:I104)","v":0}]
[null,"група-8Препарати против анемия","Мярка",null,"Търговско наименование"," Производител","Брой за 2 години","Цена без ДДС за единица мярка ","Обща цена без ДДС"]
[]
[]
[null,"Ferrous gluconate + Manganese gluconate + Copper gluconate","amp. 10ml",null,null,null,40,null,{"$f":"G109*H109","v":0}]
[null,"Iron /III/ hydroxide polimaltose complex ","amp. 100mg/5ml",null,null,null,30,null,{"$f":"G110*H110","v":0}]
[null,"Iron /III/ folic acid","tabl.100mg",null,null,null,400,null,0]
[null,"Iron proteinsuccinylate","800mg/15ml 150 ml ",null,null,null,20,null,0]
[{"$nulls":8},{"$f":"SUM(I109:I112)","v":0}]
[]
[null,"група-9Медикаменти за сърдечно - съдовата система","Мярка",null,"Търговско наименование"," Производител","Брой за 2 години","Цена без ДДС за единица мярка ","Обща цена без ДДС"]
[]
[null,"Dopamine","amp. 200mg/5ml",null,null,null,100,null,{"$f":"G117*H117","v":0}]
[null,"Trimetazidine dihydrochlorid","tabl. 35mg",null,null,null,140,null,{"$f":"G118*H118","v":0}]
[null,"Methyldigoxinum","tabl. 0,1mg",null,null,null,120,null,0]
[null,"Digoxinum","amp. 250mg/2ml",null,null,null,60,null,0]
[null,"Digoxinum","tabl. 250mcg",null,null,null,100,null,0]
[null,"Amiodarone","amp. 150mg/3ml",null,null,null,100,null,0]
[null,"Amiodarone","tabl. 200mg ",null,null,null,300,null,0]
[null,"Glyceryl trinitrate","1mg/ml 50 ml",null,null,null,10,null,0]
[null,"Propafenone","3,5mg/ml 10 ml",null,null,null,10,null,0]
[null,"Propafenone","Tb.150 mg",null,null,null,60,null,0]
[null,"Spironolactone","tb.50mg",null,null,null,200,null,0]
[null,"Spironolactone","tb.25mg",null,null,null,600,null,0]
[null,"Carvediolol","tabl. 12.5mg",null,null,null,180,null,0]
[null,"Metoprolol","tabl. 100mg",null,null,null,120,null,0]
[null,"Metoprolol","50 mg tb",null,null,null,300,null,0]
[null,"Nimodipine","tabl. 30mg",null,null,null,500,null,0]
[null,"Nimodipine","sol. 0.02% 50ml",null,null,null,10,null,0]
[null,"Zofenopril-Ca","tabl.30mg",null,null,null,60,null,0]
[null,"Lisinopril","tabl.5 mg",null,null,null,120,null,0]
[null,"Lisinopril","tabl.10 mg",null,null,null,1300,null,0]
[null,"Lisinopril","20 mg tb",null,null,null,300,null,0]
[null,"Lisinopril + Amlodipin","10mg/5mg",null,null,null,300,null,0]
[null,"Amlodipine ","tabl.5mg.",null,null,null,120,null,0]
[null,"Amlodipine","tabl.10mg.",null,null,null,120,null,0]
[null,"Enalapril","tabl.5mg",null,null,null,600,null,0]
[null,"Enalapril","tabl.10mg",null,null,null,1200,null,0]
[null,"Lercanidipine hydrochloride","tabl. 10 mg.",null,null,null,240,null,0]
[null,"Epinephrine","amp. 1mg/1ml",null,null,null,80,null,0]
[null,"Isosorbite dinitrate","tabl. 10mg ",null,null,null,120,null,0]
[null,"Isosorbite dinitrate","tabl. 20mg ",null,null,null,120,null,0]
[null,"Pentaerithrityl ","tabl. 10 mg. ",null,null,null,120,null,0]
[null,"Clonidine ","amp. 150mcg/1ml",null,null,null,400,null,0]
[null,"Clonidine ","tabl. 150mcg",null,null,null,200,null,0]
[null,"Triamterene + Hydrochlorothiazide","tabl. 25mg ",null,null,null,60,null,0]
[null,"Furosemide","tabl. 40mg",null,null,null,1360,null,0]
[null,"Furosemide","amp. 20mg/2ml",null,null,null,800,null,0]
[null,"Verapamile hydrochloride","amp. 5mg/2ml",null,null,null,40,null,0]
[null,"Verapamile hydrochloride","tabl.120 mg",null,null,null,500,null,0]
[null,"Indapamide","tabl. 1.5mg",null,null,null,120,null,0]
[null,"Nebivolol","tabl. 5mg",null,null,null,300,null,0]
[null,"Bisoprolol hemifumarate","tabl.10mg",null,null,null,600,null,0]
[null,"Bisoprolol hemifumarate","tabl.5mg",null,null,null,600,null,0]
[null,"Losartan","tabl. 50mg",null,null,null,450,null,0]
[null,"Olmesartan medoxomil","20 mg tb",null,null,null,300,null,0]
[null,"Irbesartan","150 mg tb",null,null,null,300,null,0]
[null,"Irbesartan+ hydrochlortiazide","150mg/12.5",null,null,null,300,null,0]
[null,"Telmisartan","80 mg tb",null,null,null,300,null,0]
[null,"Valsatran + hydrochlortiazide","Tabl. 160mg/12,5mg",null,null,null,120,null,0]
[null,"Rosuvastatin","10 mg tb",null,null,null,400,null,0]
[null,"Simvastatin","tabl.20mg",null,null,null,600,null,0]
[null,"Nifedipine","Tb.20 mg",null,null,null,600,null,0]
[null,"Clopidogrel","Tabl. 75 mg",null,null,null,1600,null,0]
[null,"Acidum acetylsalicilicum","Tabl. 100mg",null,null,null,1500,null,0]
[null,"Acidum acetylsalicilicum","tab. 500mg",null,null,null,1200,null,0]
[{"$nulls":8},{"$f":"SUM(I117:I170)","v":0}]
[]
[null,"група-10Противовъзпалителни и противоревматични медикаменти","Мярка",null,"Търговско наименование"," Производител","Брой за 2 години","Цена без ДДС за единица мярка ","Обща цена без ДДС"]
[]
[null," Diclofenac sodium","Amp.75mg/3ml",null,null,null,3400,null,{"$f":"G175*H175","v":0}]
[null,"Diclofenac sodium","tabl. 50mg",null,null,null,1000,null,{"$f":"G176*H176","v":0}]
[null,"Dexketoprofen","Tabl 25 mg",null,null,null,100,null,0]
[null,"Dexketoprofen","amp. 50mg/2ml",null,null,null,100,null,0]
[null,"Meloxicam","amp. 15mg/1,5ml",null,null,null,40,null,0]
[null,"Ibuprofen","sir. 100mg/5ml 100ml",null,null,null,200,null,0]
[null,"Ibuprofen","Tabl 200mg",null,null,null,120,null,0]
[null,"Nimesolide","tabl. 100mg",null,null,null,8200,null,0]
[{"$nulls":8},{"$f":"SUM(I175:I182)","v":0}]
[null,"група-11Медикаменти за отпускане на мускулите","Мярка",null,"Търговско наименование"," Производител","Брой за 2 години","Цена без ДДС за единица мярка ","Обща цена без ДДС"]
[]
[]
[null,"Atracurium ","amp.10mg/ml 2.5ml",null,null,null,80,null,{"$f":"G187*H187","v":0}]
[null,"Atracurium ","amp. 10mg/ml 5ml",null,null,null,80,null,{"$f":"G188*H188","v":0}]
[null,"Suxamethonium ","amp.10mg/ml 5ml",null,null,null,100,null,0]
[null,"Pipecuronium bromide","amp. 4mg/2ml",null,null,null,20,null,0]
[{"$nulls":8},{"$f":"SUM(I187:I190)","v":0}]
[null,"група-12Медикаменти за пикочо-половата система и хормони","Мярка",null,"Търговско наименование"," Производител","Брой за 2 години","Цена без ДДС за единица мярка ","Обща цена без ДДС"]
[]
[]
[null,"Magnesium orotate ","Tb. 500 mg",null,null,null,600,null,{"$f":"G195*H195","v":0}]
[null,"Magnesium sulfate","amp. 200mg/10ml",null,null,null,400,null,{"$f":"G196*H196","v":0}]
[null,"Methylergometrin","amp. 0,2mg",null,null,null,300,null,0]
[null,"Methylergometrin"," Tb. 0,125 mg",null,null,null,120,null,0]
[null,"Oxytocin","amp. 5IU/1ml",null,null,null,500,null,0]
[null,"Dydrogesterone","Tb. 10 mg",null,null,null,200,null,0]
[null,"Norethisterone acetate","tabl. 5 mg",null,null,null,200,null,0]
[null,"Bromocriptine","Tb.2,5 mg",null,null,null,300,null,0]
[{"$nulls":8},{"$f":"SUM(I195:I202)","v":0}]
[null,"група-13 Кортикостероиди за системна употреба","Мярка",null,"Търговско наименование"," Производител","Брой за 2 години","Цена без ДДС за единица мярка ","Обща цена без ДДС"]
[]
[null,"Dexamethasone ","amp. 4mg/1ml",null,null,null,2000,null,{"$f":"G206*H206","v":0}]
[null,"Methylprednisolone","amp.15.78mg + solv.1ml",null,null,null,3000,null,{"$f":"G207*H207","v":0}]
[null,"Methylprednisolone","amp.6.31mg + solv.1ml",null,null,null,60,null,0]
[null,"Methylprednisolone","amp.40mg + solv.1ml",null,null,null,4000,null,0]
[null,"Methylprednisolone","Tabl 4 mg",null,null,null,200,null,0]
[{"$nulls":8},{"$f":"SUM(I206:I210)","v":0}]
[null,"група-14Медикаменти за нервната система","Мярка",null,"Търговско наименование"," Производител","Брой за 2 години","Цена без ДДС за единица мярка ","Обща цена без ДДС"]
[]
[null,"Vinpocetine","amp. 5mg/ml 2ml",null,null,null,1400,null,{"$f":"G214*H214","v":0}]
[null,"Vinpocetine","tabl. 5mg",null,null,null,2160,null,{"$f":"G215*H215","v":0}]
[null,"Vinpocetine","tabl.10mg",null,null,null,1400,null,0]
[null,"Thioctic acid","tabl. 600mg",null,null,null,2000,null,0]
[null,"Thioctic acid","amp. 600mg/",null,null,null,600,null,0]
[{"$nulls":8},{"$f":"SUM(I214:I218)","v":0}]
[null,"група-15 Упойващи средства","Мярка",null,"Търговско наименование"," Производител","Брой за 2 години","Цена без ДДС за единица мярка ","Обща цена без ДДС"]
[]
[null,"Morphine ","amp. 20mg/1ml",null,null,null,20,null,{"$f":"G222*H222","v":0}]
[null,"Fentanyli citras","amp. 0,1/2ml",null,null,null,200,null,{"$f":"G223*H223","v":0}]
[null,"Fentanyli citras","amp. 0,25/5ml",null,null,null,400,null,0]
[null,"Pethidine","amp.100mg /2ml",null,null,null,20,null,0]
[null,"Propofol","amp. 10mg/ml 20ml",null,null,null,400,null,0]
[null,"Propofol","fl. 50ml",null,null,null,100,null,0]
[null,"Bupivacaine","amp. 20mg/4ml",null,null,null,80,null,0]
[null,"Sevoflurane","fl. 250ml",null,null,null,10,null,0]
[{"$nulls":8},{"$f":"SUM(I222:I229)","v":0}]
[null,"група-17 Болкоуспокоителни и локални анестетици ","Мярка",null,"Търговско наименование"," Производител","Брой за 2 години","Цена без ДДС за единица мярка ","Обща цена без ДДС"]
[]
[null,"Metamisol","tabl. 500mg",null,null,null,6000,null,{"$f":"G233*H233","v":0}]
[null,"Metamisol","amp. 500mg/ml 2ml",null,null,null,2000,null,{"$f":"G234*H234","v":0}]
[null,"Paracetamolum","fl.1,0g",null,null,null,20,null,0]
[null,"Paracetamolum","tabl.500mg",null,null,null,8400,null,0]
[null,"Paracetamolum","syr.120mg/ml 125ml",null,null,null,600,null,0]
[null," Paracetamolum","Sup.150mg",null,null,null,120,null,0]
[null," Paracetamolum","Sup.300 mg",null,null,null,100,null,0]
[null," Paracetamolum","Sup.80 mg,",null,null,null,40,null,0]
[null,"Lidocaine hydrochloride","amp. 20mg/ml 2ml",null,null,null,200,null,0]
[null,"Lidocaine hydrochloride","amp. 10mg/ml 10ml",null,null,null,200,null,0]
[{"$nulls":8},{"$f":"SUM(I233:I242)","v":0}]
[null,"група-18медикаменти за нервната система психолептични  и психоаналептични средства","Мярка",null,"Търговско наименование"," Производител","Брой за 2 години","Цена без ДДС за единица мярка ","Обща цена без ДДС"]
[]
[null,"Pregabalin","tabl.75mg",null,null,null,200,null,{"$f":"G246*H246","v":0}]
[null,"Chlorpromazine","amp. 5mg/ml 5ml",null,null,null,100,null,{"$f":"G247*H247","v":0}]
[null,"Midazolam","amp. 5mg/ml/3ml",null,null,null,100,null,0]
[null," Gabapentin"," Caps.300 mg",null,null,null,120,null,0]
[null,"Carbamazepine","Tabl. 200mg",null,null,null,4000,null,0]
[null,"Haloperidol","amp.5mg/ml",null,null,null,500,null,0]
[null," Haloperidol","Tb.1,5",null,null,null,12000,null,0]
[null,"Diazepam","Tb.10 mg",null,null,null,2000,null,0]
[null,"Diazepam","amp. 10mg/2ml",null,null,null,1200,null,0]
[null,"Galantamine","amp. 10mg/1ml",null,null,null,100,null,0]
[null,"Piracetam","amp. 200mg/ml/5ml",null,null,null,1000,null,0]
[null,"Piracetam","tabl.800mg.",null,null,null,2400,null,0]
[null,"Bromazepam","Tabl. 3 mg",null,null,null,1000,null,0]
[null,"Phenobarbital  ","sol.inj. 200mg /2ml ",null,null,null,40,null,0]
[null,"Nicergoline","tabl.10mg.",null,null,null,180,null,0]
[{"$nulls":8},{"$f":"SUM(I246:I260)","v":0}]
[null,"група-20Медикаменти за дихателната система","Мярка",null,"Търговско наименование"," Производител","Брой за 2 години","Цена без ДДС за единица мярка ","Обща цена без ДДС"]
[]
[null,"Salbutamol","spray 100mcg/dose 200 doses",null,null,null,20,null,{"$f":"G264*H264","v":0}]
[null,"Salbutamol","sol.5mg/ml 20ml",null,null,null,40,null,{"$f":"G265*H265","v":0}]
[null,"Ambroxol hydrochloride","Sir15mg/5ml 100 ml",null,null,null,400,null,0]
[null,"Ambroxol hydrochloride","tabl. 30mg",null,null,null,1500,null,0]
[null,"Diphenhydramini hydrochloridum+Amonii chloridum+Natrii citras+Chloroformium+Mentolum","syr. 125ml",null,null,null,320,null,0]
[null,"Biox-Thimy","sir. 100 ml",null,null,null,200,null,0]
[null,"Acetylcisteine","pulv.200mg",null,null,null,10,null,0]
[null,"Dextromethrophan hydrobromide","Sir.3,42mg/ml 100ml",null,null,null,40,null,0]
[null,"Prospan","7mg/ml 100ml",null,null,null,60,null,0]
[null,"Budesonide","0.25mg/ml 2 ml",null,null,null,100,null,0]
[{"$nulls":8},{"$f":"SUM(I264:I273)","v":0}]
[null,"група-21Медикаменти за дихателната система-против обструкция.Отхрачващи","Мярка",null,"Търговско наименование"," Производител","Брой за 2 години","Цена без ДДС за единица мярка ","Обща цена без ДДС"]
[]
[null,"Aminophylline","amp. 24mg/ml/10ml",null,null,null,100,null,{"$f":"G277*H277","v":0}]
[null,"Aminophylline","tabl. 100mg",null,null,null,1000,null,{"$f":"G278*H278","v":0}]
[null,"Theophylline","depo-tabl. 300 mg",null,null,null,1000,null,0]
[null,"Bromhexine hydrochloride","Tb.8 mg",null,null,null,700,null,0]
[null,"Bromhexine hydrochloride","amp. 2mg/ml 2ml",null,null,null,20,null,0]
[null," Bromhexine hydrochloride"," Syr.",null,null,null,600,null,0]
[null,"Ephedrine hydrochloride","amp. 50mg/1ml",null,null,null,100,null,0]
[{"$nulls":8},{"$f":"SUM(I277:I283)","v":0}]
[null,"група-22Антихистаминови препарати","Мярка",null,"Търговско наименование"," Производител","Брой за 2 години","Цена без ДДС за единица мярка ","Обща цена без ДДС"]
[]
[null,"Ketotifen ","Sir 125 ml",null,null,null,20,null,{"$f":"G287*H287","v":0}]
[null,"Klemastin","Tb.1 mg",null,null,null,120,null,{"$f":"G288*H288","v":0}]
[null,"Dimetindene ","Sol.1mg/ml 20ml",null,null,null,100,null,0]
[null,"Levocetirizine ","Sol.5mg/ml 20ml",null,null,null,40,null,0]
[null,"Chloropyramine ","amp. 10mg/ml 2 ml",null,null,null,40,null,0]
[null,"Desloratadine ","0.5mg/ml 120ml",null,null,null,100,null,0]
[null,"Desloratadine","Tb. 5mg",null,null,null,100,null,0]
[null,"Promethazine","Amp.25mg/ml 2ml",null,null,null,100,null,0]
[{"$nulls":8},{"$f":"SUM(I287:I294)","v":0}]
[null,"група-23Антипротозоа средства","Мярка",null,"Търговско наименование"," Производител","Брой за 2 години","Цена без ДДС за единица мярка ","Обща цена без ДДС"]
[]
[null,"Metronidazole","sol. 500mg/100ml",null,null,null,3000,null,{"$f":"G298*H298","v":0}]
[null," Metronidazole"," Tb.500 mg",null,null,null,400,null,{"$f":"G299*H299","v":0}]
[{"$nulls":8},{"$f":"SUM(I298:I299)","v":0}]
[null,"група-24 Разтвори за преливане и намаляване на вътречерепното налягане","Мярка",null,"Търговско наименование"," Производител","Брой за 2 години","Цена без ДДС за единица мярка ","Обща цена без ДДС",{"$nulls":5}," "]
[]
[null,"Sodium chloride + Potassium chloride + Sodium lactate + Calcii chloridum","sol. 500ml банка",null,null,null,1000,null,{"$f":"G303*H303","v":0}]
[null,"Sodium chloride + Potassium chloride + Calcii chloridum","sol. 500ml банка",null,null,null,1000,null,{"$f":"G304*H304","v":0}]
[null,"Sodium chloridum","sol. 0.9% 500ml банка",null,null,null,10000,null,0]
[null,"Sodium chloridum","sol. 0.9% 250ml банка",null,null,null,720,null,0]
[null,"Sodium chloridum","sol.100 ml  банка",null,null,null,1000,null,0]
[null,"Hydroxyethylstarch","Sol 500 ml",null,null,null,20,null,0]
[null,"Mannitolum 15%","sol.500ml банка",null,null,null,4000,null,0]
[null,"Mannitolum 10%","sol.500ml банка",null,null,null,4000,null,0]
[null,"Aqua redistillata","Sol.500ml",null,null,null,100,null,0]
[{"$nulls":8},{"$f":"SUM(I303:I311)","v":0}]
[null,"група-25Разтвори за инжектиране","Мярка",null,"Търговско наименование"," Производител","Брой за 2 години","Цена без ДДС за единица мярка ","Обща цена без ДДС"]
[]
[null,"Calcium gluconicum","amp.8,94mg/ml 10ml",null,null,null,400,null,{"$f":"G315*H315","v":0}]
[null,"Aqua redestilata","amp. 10ml",null,null,null,1000,null,{"$f":"G316*H316","v":0}]
[null,"Potassium chloride","amp. 1,5g/10ml",null,null,null,20,null,0]
[null,"Natrium chloridum","amp. 0.9% 10ml",null,null,null,1000,null,0]
[null,"Natrium chloridum","amp. 0.9% 5ml",null,null,null,1000,null,0]
[null,"Sodium bromide","Amp. 100mg/ml 5ml",null,null,null,400,null,0]
[{"$nulls":8},{"$f":"SUM(I315:I320)","v":0}]
[null,"група-26Разтвори за нормализиране на йонния състав","Мярка",null,"Търговско наименование"," Производител","Брой за 2 години","Цена без ДДС за единица мярка ","Обща цена без ДДС"]
[]
[null,"Sodium hydrogen carbonate","amp. 8,4% 20 ml",null,null,null,40,null,{"$f":"G324*H324","v":0}]
[{"$nulls":8},{"$f":"SUM(I324)","v":0}]
[null,"група-27Галенови форми- разтвори и мехлеми","Мярка",null,"Търговско наименование"," Производител","Брой за 2 години","Цена без ДДС за единица мярка ","Обща цена без ДДС"]
[]
[null,"Povidone Jodine","Ung.90 g",null,null,null,20,null,{"$f":"G328*H328","v":0}]
[null,"Povidone Jodine","sol.10% 1000ml",null,null,null,200,null,{"$f":"G329*H329","v":0}]
[null,"Sol iodi spirituosa","sol.5% 1000ml",null,null,null,40,null,0]
[null,"Solutio Ethacridine lactate","sol.0,1% 1000ml",null,null,null,40,null,0]
[null,"Hydrogen peroxide","Sol 3% 1000ml",null,null,null,100,null,0]
[null,"Spiritus aethylicus","sol.95% 1000ml",null,null,null,400,null,0]
[null,"Spiritus aethylicus","70% 1000ml 120gr",null,null,null,400,null,0]
[null," Oleum Ricini","1000 ml",null,null,null,10,null,0]
[null,"Liquid paraffin","80 g",null,null,null,20,null,0]
[{"$nulls":8},{"$f":"SUM(I328:I336)","v":0}]
[]
[null,"група-28Глюкозни разтвори","Мярка",null,"Търговско наименование"," Производител","Брой за 2 години","Цена без ДДС за единица мярка ","Обща цена без ДДС"]
[]
[null,"Glucosе","sol. 5% 500ml банка",null,null,null,20,null,{"$f":"G341*H341","v":0}]
[null,"Glucose","sol. 10% 500ml банка",null,null,null,20,null,{"$f":"G342*H342","v":0}]
[null,"Glucosae 5% + Sodium chloride 0.9%","sol. 500ml банка",null,null,null,4000,null,0]
[null,"Glucosae","Amp.400mg/ml 10ml",null,null,null,100,null,0]
[{"$nulls":8},{"$f":"SUM(I341:I344)","v":0}]
[null,"група-29 медикаменти за нервната система психолептични  и психоаналептични средства","Мярка",null,"Търговско наименование"," Производител","Брой за 2 години","Цена без ДДС за единица мярка ","Обща цена без ДДС"]
[]
[null,"Valproic acid",".caps 500 mg",null,null,null,1200,null,{"$f":"G348*H348","v":0}]
[null,"Valproic acid","Prolonged tb.500 mg",null,null,null,6000,null,{"$f":"G349*H349","v":0}]
[null,"Valproic acid","Tb. 300 mg",null,null,null,1000,null,0]
[null,"Clomipramine"," Tb. 25mg",null,null,null,2000,null,0]
[null,"Clomipramine"," Tb. 10mg",null,null,null,3000,null,0]
[null,"Tizanidine"," Tb. 2 mg",null,null,null,5000,null,0]
[null,"Olanzapine","Tb. 10 mg",null,null,null,400,null,0]
[null,"Citalopram ","Tb.20 mg",null,null,null,120,null,0]
[null,"Paroxetine","Tb.40 mg",null,null,null,120,null,0]
[null,"Paroxetine","Tb.20 mg",null,null,null,120,null,0]
[null,"Flupentixol ","Amp.20mg/ml",null,null,null,100,null,0]
[null,"Flupentixol ","Tb.0,5 mg",null,null,null,240,null,0]
[null,"Hydroxyzine hydrochloride","Tb.25 mg",null,null,null,480,null,0]
[null,"Mirtazapine","Tb. 30 mg",null,null,null,60,null,0]
[null,"Clozapine","Tb,100 mg",null,null,null,2000,null,0]
[null,"Trazodone hydrochloride","Tb. 150 mg",null,null,null,40,null,0]
[null,"Chlorprothixene","Tb.15 mg",null,null,null,6160,null,0]
[null,"Amitriptyline ","Tb, 25 mg",null,null,null,2000,null,0]
[null,"Alprazolam","Tb. 0,5 mg",null,null,null,3000,null,0]
[null,"Dipotassium chlorazepate","Caps.5 mg",null,null,null,120,null,0]
[null,"Zopiclone","Tb.7,5 mg",null,null,null,400,null,0]
[null,"Quetiapine","Tb.100 mg",null,null,null,2800,null,0]
[null,"Quetiapine","Tb. 200 mg",null,null,null,1800,null,0]
[null,"Biperiden","Tb.2 mg",null,null,null,16000,null,0]
[null,"Biperiden","Амп.",null,null,null,300,null,0]
[null,"Escitalopram","Tb. 20 mg",null,null,null,60,null,0]
[null,"Risperidone","Tb. 1 mg",null,null,null,1800,null,0]
[null,"Risperidone","Tb. 2 mg",null,null,null,1200,null,0]
[null,"Risperidone","Tb. 4 mg",null,null,null,600,null,0]
[null,"Duloxetine","Caps.. 30 mg",null,null,null,300,null,0]
[null,"Aripiprazole","Tb. 15 mg",null,null,null,300,null,0]
[null,"Hydroxyzine hydrochloride","Tb. 25 mg",null,null,null,400,null,0]
[null,"Amisulpride","Tb. 400 mg",null,null,null,180,null,0]
[null,"Levosulpiride","Tb. 50 mg",null,null,null,400,null,0]
[null,"Venlafaxine","Tb. 75 mg",null,null,null,400,null,0]
[null,"Sertraline","Tb. 50 mg",null,null,null,200,null,0]
[null,"Memantine","Tb. 10 mg",null,null,null,400,null,0]
[null,"Lorazepam","Tb. 1 mg",null,null,null,400,null,0]
[null,"Gabapentin","Caps.100 mg",null,null,null,2000,null,0]
[null,"Gabapentin","Caps.300 mg",null," ",null,400,null,0]
[{"$nulls":8},{"$f":"SUM(I348:I387)","v":0}]
[null,"група-30","Мярка",null,"Търговско наименование"," Производител","Брой за 2 години","Цена без ДДС за единица мярка ","Обща цена без ДДС"]
[]
[null,"Xylometazoline hydrochloride",".sol nasal drops 0,05%10ml",null,null,null,36,null,{"$f":"G391*H391","v":0}]
[null,"Xylometazoline hydrochloride","sol nasal drops 0,1%ml 10ml",null,null,null,64,null,{"$f":"G392*H392","v":0}]
[null,"Nitrofural /tetracaine hydrochloride/ phenazone","Sol.2,5mg/31,25mg/87,5mg",null,null,null,10,null,0]
[null,"Calcium gluconicum","Sir. 150 ml",null,null,null,500,null,0]
[{"$nulls":8},{"$f":"SUM(I391:I394)","v":0}]
[null,"ОБЩА ЦЕНА БЕЗ ДДС",{"$nulls":6},{"$f":"I30+I43+I50+I58+I98+I105+I113+I171+I183+I191+I203+I211+I219+I230+I243+I261+I274+I284+I295+I300+I312+I321+I325+I337+I345+I388+I395","v":0}]
[null,"ДДС",{"$nulls":6},{"$f":"I396*20%","v":0}]
[null,"ОБЩА ЦЕНА С ДДС",{"$nulls":6},{"$f":"I396+I397","v":0}]
[]
[{"$nulls":6},"Съставил:…………………….."]
[{"$nulls":6},"/име и фамилия, подпис и печат, длъжност/"]

{"sheet":"Обособена позиция 2","index":1,"n_rows":75,"n_cols":9,"rows_kept":75,"cut":false,"hidden":false,"merged":[[2,8,3,8],[1,0,1,16383],[72,1,72,7],[73,1,73,7],[74,1,74,7],[2,2,3,3],[2,4,3,4],[2,5,3,5],[2,6,3,6],[2,7,3,7]]}
[{"$nulls":7},"Приложение №2"]
["Обособена позиция №2 Ценово предложение за доставка на медицински консумативи за нуждите на МБАЛ Левски\"ЕООД гр.Левски"]
[null,"Вид на консуматива","Мярка",null,"Търговско наименование"," Производител","Брой за 2 години","Цена без ДДС за единица мярка ","Обща цена без ДДС"]
[]
[null,"Компреси марлени нестер.","5/5 х 100",null,null,null,2400,null,{"$f":"G5*H5","v":0}]
[null,"Компреси марлени нестер.","7,5/7,5 х 100",null,null,null,2400,null,{"$f":"G6*H6","v":0}]
[null,"Бинтове-марлени","10/10м",null,null,null,1000,null,0]
[null,"Бинтове-марлени","5/5м",null,null,null,1000,null,0]
[null,"Канюли за периферия","G20",null,null,null,10000,null,0]
[null,"Канюли за периферия","G22",null,null,null,10000,null,0]
[null,"Канюли за периферия","G24",null,null,null,2000,null,0]
[null,"Спинална игла","G22",null,null,null,200,null,0]
[null,"Игли","G21 1 1/2",null,null,null,80000,null,0]
[null,"Игли","G23 1 1/4",null,null,null,30000,null,0]
[null,"Ендотрахеална тръба","№ 2",null,null,null,10,null,0]
[null,"Ендотрахеална тръба","№ 3",null,null,null,10,null,0]
[null,"Ендотрахеална тръба","№ 5",null,null,null,10,null,0]
[null,"Ендотрахеална тръба","№6",null,null,null,20,null,0]
[null,"Ендотрахеална тръба","№ 6.5",null,null,null,20,null,0]
[null,"Ендотрахеална тръба","№ 7",null,null,null,20,null,0]
[null,"Ендотрахеална тръба","№7.5",null,null,null,20,null,0]
[null,"Лигнин","0,5 кг",null,null,null,2000,null,0]
[null,"Памук","100 гр",null,null,null,2000,null,0]
[null,"Катетер-двупътен с балон","16F",null,null,null,120,null,0]
[null,"Катетер-двупътен с балон","18F",null,null,null,120,null,0]
[null,"Катетер-двупътен с балон","20F",null,null,null,120,null,0]
[null,"Катетер-двупътен с балон","22F",null,null,null,120,null,0]
[null,"Санпласт","5/5м.",null,null,null,1200,null,0]
[null,"Уринаторни торби"," бр.",null,null,null,500,null,0]
[null,"Операц.чаршаф стер.","140/240 без прорез",null,null,null,400,null,0]
[null,"Операц.чаршаф  стер.","100/140 без прорез",null,null,null,1000,null,0]
[null,"Стерилен халат","N 3",null,null,null,800,null,0]
[null,"С-ми за инфузия","Бр.",null,null,null,14000,null,0]
[null,"Спринцовки","мл.2",null,null,null,40000,null,0]
[null,"Спринцовки","мл.5",null,null,null,40000,null,0]
[null,"Спринцовки","мл.10",null,null,null,10000,null,0]
[null,"Спринцовки","мл.20",null,null,null,10000,null,0]
[null,"Ректален катетър","№ 22",null,null,null,100,null,0]
[null,"Ректален катетър","№ 24",null,null,null,100,null,0]
[null,"Сонда за аспирация","№ 6",null,null,null,20,null,0]
[null,"Сонда за аспирация","№8",null,null,null,20,null,0]
[null,"Сонда за аспирация","№ 10",null,null,null,20,null,0]
[null,"Сонда за аспирация","№ 16",null,null,null,20,null,0]
[null,"Сонда за аспирация","№ 18",null,null,null,20,null,0]
[null,"Остриета за скалпел","№ 21",null,null,null,400,null,0]
[null,"Остриета за скалпел","№ 22",null,null,null,200,null,0]
[null,"Ръкавици-нестерилни ","S",null,null,null,200,null,0]
[null,"Ръкавици-нестерилни ","M",null,null,null,20000,null,0]
[null,"Ръкавици-нестерилни ","L",null,null,null,2000,null,0]
[null,"Ръкавици-стерилни операционни","№6,5",null,null,null,400,null,0]
[null,"Ръкавици-стерилни операционни","№ 7",null,null,null,2000,null,0]
[null,"Ръкавици-стерилни операционни","№7.5",null,null,null,3000,null,0]
[null,"Ръкавици-стерилни операционни","№ 8",null,null,null,1000,null,0]
[null,"Ръкавици-стерилни операционни","№ 8.5",null,null,null,1000,null,0]
[null,"Пъпни клампи",{"$nulls":4},400,null,0]
[null,"Гривни за новородени сини",{"$nulls":4},200,null,0]
[null,"Гривни за новородени розови",{"$nulls":4},200,null,0]
[null,"назогастрална сонда","№ 18",null,null,null,60,null,0]
[null,"назогастрална сонда","№20",null,null,null,60,null,0]
[null,"капачки за абокати ",{"$nulls":4},1000,null,0]
[null,"капачки за абокати ",{"$nulls":4},20,null,0]
[null,"конци полиамидни антимикробни ","№ 0",null,null,null,600,null,0]
[null,"конци полиамидни антимикробни","№ 000",null,null,null,600,null,0]
[null,"конци полиамидни антимикробни ","№ 2",null,null,null,600,null,0]
[null,"конци полиамидни антимикробни ","№ 4",null,null,null,600,null,0]
[null,"конци полиамидни антимикробни ","№ 6",null,null,null,600,null,0]
[null,"Резорбируеми конци ","№ 1",null,null,null,200,null,0]
[null,"Резорбируеми конци ","№ 2",null,null,null,200,null,0]
[null,"лепенки за абокат","6 x9",null,null,null,10000,null,0]
[null,"Компреси Микулич","45x45",null,null,null,1000,null,{"$f":"G70*H70","v":0}]
[null,"Дървена шпатула за гърло ","бр",null,null,null,100,null,0]
[null,"Глицерин 100мл.","бр",null,null,null,100,null,0]
[null,"ОБЩА ЦЕНА БЕЗ ДДС",{"$nulls":6},{"$f":"SUM(I5:I72)","v":0}]
[null,"ДДС",{"$nulls":6},{"$f":"I73*20%","v":0}]
[{"$nulls":8},{"$f":"I73+I74","v":0}]